[Event "*** SCC Grand Prix: Titled Tuesday Blitz"]
[Site "Chess.com"]
[Date "2020.07.14"]
[Round "5"]
[White "MashaFromRussia"]
[Black "marabu44"]
[Result "0-1"]
[WhiteElo "2419"]
[BlackElo "2250"]
[TimeControl "180+1"]
[EndTime "10:57:51 PDT"]
[Termination "marabu44 won by resignation"]

1. d4 {[%clk 0:03:00.9]} 1... d5 {[%clk 0:02:55.4]} 2. c4 {[%clk 0:03:01]} 2...
e6 {[%clk 0:02:55.3]} 3. Nf3 {[%clk 0:03:01.2]} 3... c5 {[%clk 0:02:54.9]} 4.
cxd5 {[%clk 0:03:01]} 4... exd5 {[%clk 0:02:52.5]} 5. Nc3 {[%clk 0:03:01.4]}
5... Nf6 {[%clk 0:02:51.7]} 6. g3 {[%clk 0:03:00.6]} 6... Nc6 {[%clk 0:02:50.6]}
7. Bg2 {[%clk 0:03:00.7]} 7... Be6 {[%clk 0:02:42.9]} 8. O-O {[%clk 0:03:00.4]}
8... Be7 {[%clk 0:02:42.3]} 9. Bg5 {[%clk 0:02:59]} 9... O-O {[%clk 0:02:37.5]}
10. Bxf6 {[%clk 0:02:46.2]} 10... Bxf6 {[%clk 0:02:36.5]} 11. dxc5 {[%clk
0:02:46.3]} 11... Qd7 {[%clk 0:02:28.1]} 12. Rc1 {[%clk 0:02:41.1]} 12... Rfd8
{[%clk 0:02:19.2]} 13. e3 {[%clk 0:02:40.1]} 13... Bg4 {[%clk 0:02:14.3]} 14.
Qb3 {[%clk 0:02:31.8]} 14... Qf5 {[%clk 0:01:55]} 15. Nd4 {[%clk 0:02:09.8]}
15... Bxd4 {[%clk 0:01:51.2]} 16. exd4 {[%clk 0:02:10.7]} 16... Nxd4 {[%clk
0:01:50.9]} 17. Qxb7 {[%clk 0:02:09.4]} 17... Nf3+ {[%clk 0:01:49.8]} 18. Kh1
{[%clk 0:02:05.2]} 18... Qh5 {[%clk 0:01:37.8]} 19. h4 {[%clk 0:02:02.9]} 19...
Rab8 {[%clk 0:01:29.2]} 20. Qe7 {[%clk 0:01:44.4]} 20... g5 {[%clk 0:01:22.6]}
21. Bxf3 {[%clk 0:01:14.7]} 21... Bxf3+ {[%clk 0:01:22]} 22. Kh2 {[%clk
0:01:15.1]} 22... gxh4 {[%clk 0:01:13.7]} 23. Qxh4 {[%clk 0:01:14.8]} 23...
Qxh4+ {[%clk 0:01:13.6]} 24. gxh4 {[%clk 0:01:15.7]} 24... Rxb2 {[%clk
0:01:10.7]} 25. Kg3 {[%clk 0:01:16.2]} 25... Bh5 {[%clk 0:01:06]} 26. Kf4 {[%clk
0:01:14.9]} 26... Kf8 {[%clk 0:01:00.4]} 27. f3 {[%clk 0:01:11.6]} 27... Bg6
{[%clk 0:00:58.5]} 28. Rfd1 {[%clk 0:01:08.7]} 28... Rb4+ {[%clk 0:00:58.2]} 29.
Kg3 {[%clk 0:01:05.3]} 29... d4 {[%clk 0:00:57.4]} 30. Ne4 {[%clk 0:01:02.6]}
30... Bxe4 {[%clk 0:00:43.5]} 31. fxe4 {[%clk 0:01:03.5]} 31... Ke7 {[%clk
0:00:43.4]} 32. Kf4 {[%clk 0:01:03.4]} 32... Ke6 {[%clk 0:00:43.2]} 33. c6
{[%clk 0:00:59.9]} 33... Rc8 {[%clk 0:00:42.7]} 34. Rc5 {[%clk 0:00:55.5]} 34...
Rc7 {[%clk 0:00:39.5]} 35. Re5+ {[%clk 0:00:50.4]} 35... Kf6 {[%clk 0:00:37.7]}
36. Rc5 {[%clk 0:00:48.9]} 36... Rb6 {[%clk 0:00:36.2]} 37. Rxd4 {[%clk
0:00:46.2]} 37... Rbxc6 {[%clk 0:00:36.3]} 38. Rxc6+ {[%clk 0:00:45.5]} 38...
Rxc6 {[%clk 0:00:36.4]} 39. Ra4 {[%clk 0:00:44.7]} 39... a6 {[%clk 0:00:36.4]}
40. Ra5 {[%clk 0:00:43.6]} 40... h6 {[%clk 0:00:35.7]} 41. h5 {[%clk 0:00:40.8]}
41... Ke6 {[%clk 0:00:34.5]} 42. Ke3 {[%clk 0:00:39]} 42... Kd6 {[%clk
0:00:31.8]} 43. Kd4 {[%clk 0:00:37.9]} 43... Rb6 {[%clk 0:00:31.7]} 44. Kc4
{[%clk 0:00:32.3]} 44... f6 {[%clk 0:00:29.6]} 45. Rd5+ {[%clk 0:00:29.3]} 45...
Kc6 {[%clk 0:00:29.2]} 46. Rf5 {[%clk 0:00:28.2]} 46... Kd7 {[%clk 0:00:26.9]}
47. a4 {[%clk 0:00:25.4]} 47... Rc6+ {[%clk 0:00:26.2]} 48. Kb4 {[%clk 0:00:25]}
48... Ke6 {[%clk 0:00:25.1]} 49. Ra5 {[%clk 0:00:20.8]} 49... Kd6 {[%clk
0:00:23.1]} 50. Rf5 {[%clk 0:00:20.1]} 50... Ke6 {[%clk 0:00:23.1]} 51. Ka5
{[%clk 0:00:18.7]} 51... Ke7 {[%clk 0:00:22.4]} 52. Rd5 {[%clk 0:00:17.3]} 52...
Ke6 {[%clk 0:00:21.7]} 53. Kb4 {[%clk 0:00:15.5]} 53... Rb6+ {[%clk 0:00:20.4]}
54. Kc5 {[%clk 0:00:14.7]} 54... Rb7 {[%clk 0:00:19.6]} 55. Rd6+ {[%clk
0:00:14.9]} 55... Ke5 {[%clk 0:00:20]} 56. Rxa6 {[%clk 0:00:15.3]} 56... Rc7+
{[%clk 0:00:20.1]} 57. Kb6 {[%clk 0:00:14.6]} 57... Rc4 {[%clk 0:00:20.2]} 58.
Kb7 {[%clk 0:00:12.3]} 58... Rb4+ {[%clk 0:00:20]} 59. Kc7 {[%clk 0:00:11.2]}
59... Rc4+ {[%clk 0:00:19.9]} 60. Kb8 {[%clk 0:00:11.1]} 60... Rxe4 {[%clk
0:00:19.7]} 61. a5 {[%clk 0:00:10.8]} 61... Ra4 {[%clk 0:00:19.2]} 62. Kb7
{[%clk 0:00:08.7]} 62... f5 {[%clk 0:00:18.3]} 63. Ra8 {[%clk 0:00:07]} 63... f4
{[%clk 0:00:18.1]} 64. a6 {[%clk 0:00:07.1]} 64... f3 {[%clk 0:00:17.4]} 65. Rf8
{[%clk 0:00:04.1]} 65... Ke4 {[%clk 0:00:16.1]} 66. a7 {[%clk 0:00:03.9]} 66...
Rb4+ {[%clk 0:00:15.7]} 67. Ka6 {[%clk 0:00:03.8]} 67... Ra4+ {[%clk 0:00:15.6]}
68. Kb6 {[%clk 0:00:04.3]} 68... Ke3 {[%clk 0:00:14.1]} 69. Rxf3+ {[%clk
0:00:03]} 69... Kxf3 {[%clk 0:00:13.1]} 70. Kb7 {[%clk 0:00:03.9]} 70... Rxa7+
{[%clk 0:00:13.1]} 71. Kxa7 {[%clk 0:00:03.7]} 71... Kg4 {[%clk 0:00:13.8]} 72.
Kb6 {[%clk 0:00:04]} 72... Kxh5 {[%clk 0:00:14.2]} 73. Kc5 {[%clk 0:00:04.9]}
73... Kg4 {[%clk 0:00:15.1]} 74. Kd4 {[%clk 0:00:05.8]} 74... Kf3 {[%clk
0:00:15.6]} 0-1

[Event "*** SCC Grand Prix: Titled Tuesday Blitz"]
[Site "Chess.com"]
[Date "2020.07.14"]
[Round "5"]
[White "Tactictic"]
[Black "Munkhzul_Turmunkh"]
[Result "0-1"]
[WhiteElo "2374"]
[BlackElo "2548"]
[TimeControl "180+1"]
[EndTime "10:57:54 PDT"]
[Termination "Munkhzul_Turmunkh won by resignation"]

1. e4 {[%clk 0:03:00.9]} 1... c5 {[%clk 0:02:58]} 2. Nf3 {[%clk 0:03:01.1]} 2...
d6 {[%clk 0:02:55.6]} 3. d4 {[%clk 0:03:01.4]} 3... cxd4 {[%clk 0:02:53.3]} 4.
Nxd4 {[%clk 0:03:02.3]} 4... Nf6 {[%clk 0:02:52.8]} 5. Nc3 {[%clk 0:03:01.6]}
5... a6 {[%clk 0:02:52.8]} 6. Be3 {[%clk 0:03:01.6]} 6... e5 {[%clk 0:02:52.8]}
7. Nf3 {[%clk 0:03:02.1]} 7... Be7 {[%clk 0:02:50.1]} 8. Bc4 {[%clk 0:03:02]}
8... O-O {[%clk 0:02:49.9]} 9. O-O {[%clk 0:02:59.4]} 9... Be6 {[%clk
0:02:50.2]} 10. Bb3 {[%clk 0:02:57.7]} 10... Nc6 {[%clk 0:02:41.5]} 11. Bg5
{[%clk 0:02:55.9]} 11... h6 {[%clk 0:02:30.1]} 12. Bxf6 {[%clk 0:02:53.7]} 12...
Bxf6 {[%clk 0:02:30.7]} 13. Qd2 {[%clk 0:02:53.2]} 13... Qc7 {[%clk 0:02:24]}
14. Rad1 {[%clk 0:02:42.5]} 14... Rad8 {[%clk 0:02:23]} 15. Nd5 {[%clk
0:02:42.6]} 15... Bxd5 {[%clk 0:02:22.6]} 16. Bxd5 {[%clk 0:02:41.8]} 16... Ne7
{[%clk 0:02:20.5]} 17. c3 {[%clk 0:02:37.5]} 17... Ng6 {[%clk 0:02:20]} 18. g3
{[%clk 0:02:35.1]} 18... b5 {[%clk 0:02:17.3]} 19. Ne1 {[%clk 0:02:34]} 19...
Bg5 {[%clk 0:02:15.2]} 20. Qd3 {[%clk 0:02:31.9]} 20... Qc5 {[%clk 0:02:12.4]}
21. h4 {[%clk 0:02:30.6]} 21... Bf6 {[%clk 0:02:07.4]} 22. Nc2 {[%clk
0:02:30.1]} 22... Kh7 {[%clk 0:01:57.6]} 23. Ne3 {[%clk 0:02:21.2]} 23... Ne7
{[%clk 0:01:57.2]} 24. Kg2 {[%clk 0:02:09.4]} 24... g6 {[%clk 0:01:55.4]} 25. h5
{[%clk 0:02:03.6]} 25... Bg5 {[%clk 0:01:53.9]} 26. f4 {[%clk 0:02:00]} 26...
exf4 {[%clk 0:01:50.5]} 27. gxf4 {[%clk 0:02:00.9]} 27... Bf6 {[%clk 0:01:50.6]}
28. Ng4 {[%clk 0:01:40.7]} 28... Bg7 {[%clk 0:01:49.1]} 29. f5 {[%clk
0:01:40.5]} 29... gxf5 {[%clk 0:01:44.8]} 30. exf5 {[%clk 0:01:38.7]} 30...
Qxd5+ {[%clk 0:01:42.6]} 31. Qxd5 {[%clk 0:01:36.7]} 31... Nxd5 {[%clk
0:01:43.5]} 32. Rxd5 {[%clk 0:01:36.7]} 32... Rfe8 {[%clk 0:01:41.4]} 33. f6
{[%clk 0:01:34.5]} 33... Bf8 {[%clk 0:01:40.8]} 34. Kf3 {[%clk 0:01:34.7]} 34...
Rc8 {[%clk 0:01:35.1]} 35. Rfd1 {[%clk 0:01:32]} 35... Rc4 {[%clk 0:01:33.6]}
36. R1d4 {[%clk 0:01:32.1]} 36... Rc6 {[%clk 0:01:20.6]} 37. Re4 {[%clk
0:01:23.4]} 37... Re6 {[%clk 0:01:07.5]} 38. Rd3 {[%clk 0:00:56.1]} 38... Rc5
{[%clk 0:01:04.5]} 39. Rde3 {[%clk 0:00:38]} 39... Rf5+ {[%clk 0:00:54]} 40. Ke2
{[%clk 0:00:28.5]} 40... Rxe4 {[%clk 0:00:46.4]} 41. Rxe4 {[%clk 0:00:29.4]}
41... d5 {[%clk 0:00:42.4]} 42. Re5 {[%clk 0:00:28.1]} 42... Rf4 {[%clk
0:00:39.2]} 43. Ne3 {[%clk 0:00:25.6]} 43... Rxf6 {[%clk 0:00:38]} 44. Nxd5
{[%clk 0:00:21.7]} 44... Rc6 {[%clk 0:00:37.2]} 45. Rf5 {[%clk 0:00:19.8]} 45...
Kg7 {[%clk 0:00:35.6]} 46. Kd3 {[%clk 0:00:19]} 46... Bc5 {[%clk 0:00:34.8]} 47.
b3 {[%clk 0:00:16.4]} 47... Ba7 {[%clk 0:00:27]} 48. c4 {[%clk 0:00:16.1]} 48...
bxc4+ {[%clk 0:00:18.1]} 49. bxc4 {[%clk 0:00:17]} 49... Re6 {[%clk 0:00:17.1]}
50. Rf3 {[%clk 0:00:14.9]} 50... f6 {[%clk 0:00:16.5]} 51. Ne3 {[%clk
0:00:14.4]} 51... Rd6+ {[%clk 0:00:15.6]} 52. Kc3 {[%clk 0:00:14.1]} 52... Bxe3
{[%clk 0:00:15.6]} 53. Rxe3 {[%clk 0:00:15]} 53... f5 {[%clk 0:00:16.2]} 54. c5
{[%clk 0:00:14]} 54... Rd1 {[%clk 0:00:16.1]} 55. Re6 {[%clk 0:00:11.9]} 55...
f4 {[%clk 0:00:16.1]} 56. Rxa6 {[%clk 0:00:11.2]} 56... f3 {[%clk 0:00:16.5]}
57. Ra7+ {[%clk 0:00:11.3]} 57... Kf6 {[%clk 0:00:16.3]} 58. Ra4 {[%clk
0:00:11.5]} 58... Ke5 {[%clk 0:00:15]} 59. c6 {[%clk 0:00:06.3]} 59... f2 {[%clk
0:00:13.7]} 60. c7 {[%clk 0:00:04.6]} 60... f1=Q {[%clk 0:00:13.7]} 61. Ra5+
{[%clk 0:00:04]} 61... Kd6 {[%clk 0:00:12.8]} 62. c8=N+ {[%clk 0:00:02]} 62...
Kc7 {[%clk 0:00:11.9]} 63. Rc5+ {[%clk 0:00:02.4]} 63... Kd8 {[%clk 0:00:11.4]}
64. Nb6 {[%clk 0:00:02.1]} 64... Qd3+ {[%clk 0:00:11.3]} 65. Kb4 {[%clk
0:00:02.4]} 65... Rb1+ {[%clk 0:00:11.3]} 66. Ka4 {[%clk 0:00:02.9]} 66... Rxb6
{[%clk 0:00:10.8]} 67. a3 {[%clk 0:00:01.6]} 67... Ra6+ {[%clk 0:00:10.4]} 68.
Kb4 {[%clk 0:00:01.7]} 68... Qxa3+ {[%clk 0:00:11.3]} 69. Kc4 {[%clk 0:00:02]}
69... Qxc5+ {[%clk 0:00:11.6]} 70. Kxc5 {[%clk 0:00:02.5]} 70... Ra5+ {[%clk
0:00:12.5]} 71. Kd4 {[%clk 0:00:03.3]} 71... Rxh5 {[%clk 0:00:13.4]} 72. Ke4
{[%clk 0:00:04.2]} 72... Ra5 {[%clk 0:00:13.5]} 73. Kf4 {[%clk 0:00:04.8]} 73...
h5 {[%clk 0:00:14.4]} 74. Kf3 {[%clk 0:00:05.7]} 74... Ke7 {[%clk 0:00:15]} 75.
Kg3 {[%clk 0:00:06.6]} 75... Kf6 {[%clk 0:00:15.9]} 76. Kh4 {[%clk 0:00:07.5]}
76... Kg6 {[%clk 0:00:16.1]} 77. Kg3 {[%clk 0:00:08.4]} 77... Kg5 {[%clk
0:00:17]} 78. Kh3 {[%clk 0:00:09.3]} 78... Ra3+ {[%clk 0:00:17.5]} 79. Kg2
{[%clk 0:00:09.5]} 79... Kg4 {[%clk 0:00:18.4]} 80. Kh2 {[%clk 0:00:10.3]} 80...
Ra2+ {[%clk 0:00:19.3]} 0-1

[Event "*** SCC Grand Prix: Titled Tuesday Blitz"]
[Site "Chess.com"]
[Date "2020.07.14"]
[Round "5"]
[White "pfalcon1949"]
[Black "LubovMarkelova"]
[Result "0-1"]
[WhiteElo "2065"]
[BlackElo "2185"]
[TimeControl "180+1"]
[EndTime "10:57:59 PDT"]
[Termination "LubovMarkelova won by checkmate"]

1. d4 {[%clk 0:03:00.9]} 1... d5 {[%clk 0:02:59.6]} 2. c4 {[%clk 0:03:00.7]}
2... c6 {[%clk 0:03:00]} 3. cxd5 {[%clk 0:02:59.7]} 3... cxd5 {[%clk 0:02:59.2]}
4. Nc3 {[%clk 0:03:00.1]} 4... Nf6 {[%clk 0:02:59.8]} 5. Bf4 {[%clk 0:02:59.6]}
5... Nc6 {[%clk 0:03:00.3]} 6. e3 {[%clk 0:03:00]} 6... Bf5 {[%clk 0:03:00.8]}
7. Qb3 {[%clk 0:02:58.9]} 7... Na5 {[%clk 0:03:00.7]} 8. Bb5+ {[%clk 0:02:55.7]}
8... Nc6 {[%clk 0:02:59.3]} 9. Rc1 {[%clk 0:02:54.2]} 9... e6 {[%clk 0:02:57.1]}
10. Nf3 {[%clk 0:02:53.1]} 10... Bd6 {[%clk 0:02:46.9]} 11. Ne5 {[%clk 0:02:48]}
11... Bxe5 {[%clk 0:02:46.4]} 12. dxe5 {[%clk 0:02:45.9]} 12... Nd7 {[%clk
0:02:42]} 13. O-O {[%clk 0:02:42]} 13... O-O {[%clk 0:02:41.8]} 14. Bxc6 {[%clk
0:02:41.7]} 14... bxc6 {[%clk 0:02:41.6]} 15. Ne2 {[%clk 0:02:41.2]} 15... c5
{[%clk 0:02:36.4]} 16. Rfd1 {[%clk 0:02:32.6]} 16... Rb8 {[%clk 0:02:35.9]} 17.
Qc3 {[%clk 0:02:31.2]} 17... Qb6 {[%clk 0:02:30.8]} 18. b3 {[%clk 0:02:28.5]}
18... Rfc8 {[%clk 0:02:24.4]} 19. h3 {[%clk 0:02:21.5]} 19... h6 {[%clk
0:02:23.9]} 20. g4 {[%clk 0:02:21]} 20... Bg6 {[%clk 0:02:23.7]} 21. Ng3 {[%clk
0:02:19.1]} 21... Qb4 {[%clk 0:02:19.2]} 22. Kg2 {[%clk 0:01:58.5]} 22... c4
{[%clk 0:02:14.9]} 23. bxc4 {[%clk 0:01:52.6]} 23... Rxc4 {[%clk 0:02:12.3]} 24.
Qxb4 {[%clk 0:01:48.4]} 24... Rbxb4 {[%clk 0:02:11.7]} 25. Rxc4 {[%clk
0:01:43.7]} 25... Rxc4 {[%clk 0:02:11.7]} 26. Rd2 {[%clk 0:01:42.2]} 26... Nc5
{[%clk 0:02:11.4]} 27. h4 {[%clk 0:01:39.1]} 27... Rc2 {[%clk 0:02:00.2]} 28.
Rd4 {[%clk 0:01:25.5]} 28... Nd3 {[%clk 0:01:55.2]} 29. Ra4 {[%clk 0:01:17.1]}
29... Rxf2+ {[%clk 0:01:50.8]} 30. Kh3 {[%clk 0:01:11.4]} 30... Rb2 {[%clk
0:01:24.4]} 31. h5 {[%clk 0:00:56.6]} 31... Nf2+ {[%clk 0:01:23.9]} 32. Kh4
{[%clk 0:00:54.4]} 32... Be4 {[%clk 0:01:23.9]} 33. Nxe4 {[%clk 0:00:49.6]}
33... Nxe4 {[%clk 0:01:23.6]} 34. Rxa7 {[%clk 0:00:46.7]} 34... Rg2 {[%clk
0:01:18.1]} 35. a4 {[%clk 0:00:40.6]} 35... Nf2 {[%clk 0:01:18]} 36. Bg3 {[%clk
0:00:39.9]} 36... Nd1 {[%clk 0:00:51.1]} 37. Bf4 {[%clk 0:00:37.3]} 37... Nf2
{[%clk 0:00:43.5]} 38. Bg3 {[%clk 0:00:35.5]} 38... Ne4 {[%clk 0:00:43.4]} 39.
Bf4 {[%clk 0:00:34.5]} 39... Rg1 {[%clk 0:00:43]} 40. Ra8+ {[%clk 0:00:32.9]}
40... Kh7 {[%clk 0:00:42.4]} 41. Kh3 {[%clk 0:00:32.4]} 41... Nf2+ {[%clk
0:00:39.1]} 42. Kh2 {[%clk 0:00:31.6]} 42... Rxg4 {[%clk 0:00:38.4]} 43. a5
{[%clk 0:00:30.1]} 43... Nd3 {[%clk 0:00:29.9]} 44. a6 {[%clk 0:00:29.9]} 44...
Nxf4 {[%clk 0:00:30.1]} 45. a7 {[%clk 0:00:27.2]} 45... Rg2+ {[%clk 0:00:30.2]}
46. Kh1 {[%clk 0:00:25.3]} 46... Ra2 {[%clk 0:00:30.1]} 47. exf4 {[%clk
0:00:25.6]} 47... d4 {[%clk 0:00:25.2]} 48. Kg1 {[%clk 0:00:25.5]} 48... d3
{[%clk 0:00:25.4]} 49. Kf1 {[%clk 0:00:25.6]} 49... Ra1+ {[%clk 0:00:21.6]} 50.
Kf2 {[%clk 0:00:25.4]} 50... d2 {[%clk 0:00:22.1]} 51. Rd8 {[%clk 0:00:24.6]}
51... d1=Q {[%clk 0:00:19.6]} 52. Rxd1 {[%clk 0:00:24.5]} 52... Rxa7 {[%clk
0:00:19.5]} 53. Rd6 {[%clk 0:00:24.5]} 53... Ra4 {[%clk 0:00:18.4]} 54. Kg3
{[%clk 0:00:24.9]} 54... Ra3+ {[%clk 0:00:17.9]} 55. Kg4 {[%clk 0:00:21.8]}
55... g6 {[%clk 0:00:17.1]} 56. Rd7 {[%clk 0:00:22.7]} 56... gxh5+ {[%clk
0:00:15.8]} 57. Kxh5 {[%clk 0:00:23]} 57... Kg7 {[%clk 0:00:14.6]} 58. Kg4
{[%clk 0:00:23.4]} 58... Ra4 {[%clk 0:00:14.2]} 59. Re7 {[%clk 0:00:23.6]} 59...
Kg6 {[%clk 0:00:13.6]} 60. Kg3 {[%clk 0:00:24]} 60... h5 {[%clk 0:00:13.5]} 61.
Kh4 {[%clk 0:00:23.9]} 61... Rxf4+ {[%clk 0:00:12.8]} 62. Kg3 {[%clk 0:00:24.8]}
62... Re4 {[%clk 0:00:12.9]} 63. Kf3 {[%clk 0:00:25.1]} 63... Rxe5 {[%clk
0:00:13.2]} 64. Re8 {[%clk 0:00:26]} 64... Rf5+ {[%clk 0:00:13.4]} 65. Kg3
{[%clk 0:00:25.3]} 65... Kf6 {[%clk 0:00:13.7]} 66. Rg8 {[%clk 0:00:25.5]} 66...
e5 {[%clk 0:00:14]} 67. Rh8 {[%clk 0:00:25.8]} 67... Rg5+ {[%clk 0:00:14.2]} 68.
Kf3 {[%clk 0:00:25.1]} 68... Rf5+ {[%clk 0:00:13.2]} 69. Ke3 {[%clk 0:00:25.3]}
69... Ke6 {[%clk 0:00:11.7]} 70. Rh6+ {[%clk 0:00:25.8]} 70... f6 {[%clk
0:00:11.6]} 71. Rh7 {[%clk 0:00:26.7]} 71... Rf4 {[%clk 0:00:11.3]} 72. Rh8
{[%clk 0:00:27.6]} 72... h4 {[%clk 0:00:11.1]} 73. Rh5 {[%clk 0:00:27.7]} 73...
Kd5 {[%clk 0:00:11.2]} 74. Rh6 {[%clk 0:00:27.7]} 74... Rg4 {[%clk 0:00:11.5]}
75. Rh5 {[%clk 0:00:27.5]} 75... h3 {[%clk 0:00:11.1]} 76. Ke2 {[%clk
0:00:28.1]} 76... Rg2+ {[%clk 0:00:10.8]} 77. Kf3 {[%clk 0:00:28.5]} 77... Rc2
{[%clk 0:00:09.9]} 78. Rxh3 {[%clk 0:00:28.5]} 78... Rc3+ {[%clk 0:00:10.2]} 79.
Kg2 {[%clk 0:00:28.8]} 79... Rxh3 {[%clk 0:00:10.4]} 80. Kxh3 {[%clk 0:00:29.7]}
80... Kd4 {[%clk 0:00:11.1]} 81. Kg4 {[%clk 0:00:30.6]} 81... Kd3 {[%clk
0:00:11.7]} 82. Kf5 {[%clk 0:00:31.5]} 82... e4 {[%clk 0:00:11.8]} 83. Kxf6
{[%clk 0:00:32.4]} 83... e3 {[%clk 0:00:12.4]} 84. Ke5 {[%clk 0:00:33.3]} 84...
e2 {[%clk 0:00:13.3]} 85. Kf4 {[%clk 0:00:34.2]} 85... e1=Q {[%clk 0:00:13.6]}
86. Kf5 {[%clk 0:00:34.1]} 86... Qe3 {[%clk 0:00:13.5]} 87. Kg6 {[%clk 0:00:35]}
87... Qf4 {[%clk 0:00:13.6]} 88. Kh7 {[%clk 0:00:35.9]} 88... Qg5 {[%clk
0:00:13.6]} 89. Kh8 {[%clk 0:00:35.9]} 89... Ke4 {[%clk 0:00:14.2]} 90. Kh7
{[%clk 0:00:35.3]} 90... Kf5 {[%clk 0:00:14.9]} 91. Kh8 {[%clk 0:00:36.2]} 91...
Kf6 {[%clk 0:00:15.5]} 92. Kh7 {[%clk 0:00:37.1]} 92... Qg7# {[%clk 0:00:15.5]}
0-1

[Event "*** SCC Grand Prix: Titled Tuesday Blitz"]
[Site "Chess.com"]
[Date "2020.07.14"]
[Round "5"]
[White "Gabrielian_Artur"]
[Black "vovachesss"]
[Result "1/2-1/2"]
[WhiteElo "2802"]
[BlackElo "2613"]
[TimeControl "180+1"]
[EndTime "10:58:04 PDT"]
[Termination "Game drawn - insufficient material"]

1. e4 {[%clk 0:03:00.9]} 1... c6 {[%clk 0:02:54]} 2. d4 {[%clk 0:03:00.3]} 2...
d5 {[%clk 0:02:54]} 3. exd5 {[%clk 0:03:00.3]} 3... cxd5 {[%clk 0:02:54.3]} 4.
c4 {[%clk 0:03:00.6]} 4... Nf6 {[%clk 0:02:55.2]} 5. Nc3 {[%clk 0:02:59.8]} 5...
e6 {[%clk 0:02:55.5]} 6. Nf3 {[%clk 0:02:58.5]} 6... Be7 {[%clk 0:02:55.4]} 7.
cxd5 {[%clk 0:02:57.3]} 7... Nxd5 {[%clk 0:02:54.9]} 8. Bc4 {[%clk 0:02:52]}
8... O-O {[%clk 0:02:54.7]} 9. O-O {[%clk 0:02:51.7]} 9... Nc6 {[%clk
0:02:54.1]} 10. Re1 {[%clk 0:02:50]} 10... b6 {[%clk 0:02:51.3]} 11. Nxd5 {[%clk
0:02:41]} 11... exd5 {[%clk 0:02:50.9]} 12. Bb5 {[%clk 0:02:41]} 12... Bd7
{[%clk 0:02:29]} 13. Bf4 {[%clk 0:02:35.5]} 13... Nb4 {[%clk 0:02:19]} 14. Bxd7
{[%clk 0:02:16.6]} 14... Qxd7 {[%clk 0:02:19.9]} 15. a3 {[%clk 0:02:11.3]} 15...
Nc6 {[%clk 0:02:16.8]} 16. Qd3 {[%clk 0:02:07.7]} 16... Rac8 {[%clk 0:02:12.9]}
17. Re2 {[%clk 0:02:02]} 17... Bf6 {[%clk 0:02:06.4]} 18. Rae1 {[%clk 0:01:55]}
18... Rfe8 {[%clk 0:02:02.3]} 19. Qf5 {[%clk 0:01:43.6]} 19... Re6 {[%clk
0:01:34.8]} 20. Rxe6 {[%clk 0:01:40.2]} 20... fxe6 {[%clk 0:01:35.7]} 21. Qd3
{[%clk 0:01:20.7]} 21... Na5 {[%clk 0:01:28.4]} 22. h4 {[%clk 0:01:19.6]} 22...
Nc4 {[%clk 0:01:23.1]} 23. Re2 {[%clk 0:01:19.4]} 23... b5 {[%clk 0:01:10.2]}
24. Bg5 {[%clk 0:01:16.6]} 24... Nd6 {[%clk 0:00:59.8]} 25. Ne5 {[%clk
0:01:00.1]} 25... Bxe5 {[%clk 0:00:57.4]} 26. dxe5 {[%clk 0:01:00.5]} 26... Nc4
{[%clk 0:00:36.8]} 27. Kh2 {[%clk 0:00:45.5]} 27... Qf7 {[%clk 0:00:36.2]} 28.
Qg3 {[%clk 0:00:38.8]} 28... Qg6 {[%clk 0:00:29.3]} 29. Qh3 {[%clk 0:00:36.9]}
29... h6 {[%clk 0:00:28.1]} 30. Be7 {[%clk 0:00:32.2]} 30... Rc7 {[%clk
0:00:27.5]} 31. Bd6 {[%clk 0:00:31.5]} 31... Rf7 {[%clk 0:00:27.9]} 32. b3
{[%clk 0:00:30.6]} 32... Nb6 {[%clk 0:00:18.4]} 33. h5 {[%clk 0:00:25.3]} 33...
Qf5 {[%clk 0:00:13.6]} 34. Qxf5 {[%clk 0:00:25.3]} 34... Rxf5 {[%clk 0:00:14]}
35. Rc2 {[%clk 0:00:23.3]} 35... Rxh5+ {[%clk 0:00:13.6]} 36. Kg1 {[%clk
0:00:21.5]} 36... d4 {[%clk 0:00:14.1]} 37. f3 {[%clk 0:00:19.9]} 37... Nd5
{[%clk 0:00:12.6]} 38. Rd2 {[%clk 0:00:19.9]} 38... Nf4 {[%clk 0:00:10.4]} 39.
Kf2 {[%clk 0:00:18.5]} 39... Rg5 {[%clk 0:00:06.2]} 40. g4 {[%clk 0:00:15.8]}
40... Ng6 {[%clk 0:00:05.6]} 41. Rxd4 {[%clk 0:00:15]} 41... Nxe5 {[%clk
0:00:05.9]} 42. Bxe5 {[%clk 0:00:11.2]} 42... Rxe5 {[%clk 0:00:06.8]} 43. Rd7
{[%clk 0:00:11.4]} 43... a5 {[%clk 0:00:07]} 44. Rb7 {[%clk 0:00:11.5]} 44...
Rc5 {[%clk 0:00:06.6]} 45. b4 {[%clk 0:00:11.1]} 45... axb4 {[%clk 0:00:06.7]}
46. axb4 {[%clk 0:00:11.6]} 46... Rd5 {[%clk 0:00:07.6]} 47. Ke3 {[%clk
0:00:11.6]} 47... Kh7 {[%clk 0:00:08]} 48. f4 {[%clk 0:00:11.5]} 48... Kg6
{[%clk 0:00:08.3]} 49. Ke4 {[%clk 0:00:11.8]} 49... Kf6 {[%clk 0:00:07.8]} 50.
Ke3 {[%clk 0:00:10.3]} 50... h5 {[%clk 0:00:06.4]} 51. g5+ {[%clk 0:00:09.9]}
51... Kg6 {[%clk 0:00:06.9]} 52. Ke4 {[%clk 0:00:09.9]} 52... h4 {[%clk
0:00:06.8]} 53. Rb8 {[%clk 0:00:09.3]} 53... Kh5 {[%clk 0:00:06.1]} 54. Rh8+
{[%clk 0:00:08.6]} 54... Kg4 {[%clk 0:00:06.3]} 55. Rh7 {[%clk 0:00:09.1]} 55...
g6 {[%clk 0:00:06]} 56. Rh6 {[%clk 0:00:09.6]} 56... h3 {[%clk 0:00:05.5]} 57.
Rxg6 {[%clk 0:00:10]} 57... Rd2 {[%clk 0:00:05]} 58. Rh6 {[%clk 0:00:09.3]}
58... h2 {[%clk 0:00:04]} 59. g6 {[%clk 0:00:09.3]} 59... Re2+ {[%clk
0:00:04.6]} 60. Kd3 {[%clk 0:00:08.6]} 60... Rg2 {[%clk 0:00:05.5]} 61. g7
{[%clk 0:00:08.8]} 61... Kxf4 {[%clk 0:00:05.9]} 62. Rxh2 {[%clk 0:00:07.8]}
62... Rxg7 {[%clk 0:00:06.1]} 63. Rh4+ {[%clk 0:00:07.2]} 63... Ke5 {[%clk
0:00:06.1]} 64. Rh5+ {[%clk 0:00:07.7]} 64... Kd6 {[%clk 0:00:06.2]} 65. Rxb5
{[%clk 0:00:08.3]} 65... Rg3+ {[%clk 0:00:05.6]} 66. Kc4 {[%clk 0:00:07.3]}
66... Rg4+ {[%clk 0:00:05.8]} 67. Kb3 {[%clk 0:00:07.8]} 67... e5 {[%clk
0:00:06.4]} 68. Rb8 {[%clk 0:00:08]} 68... e4 {[%clk 0:00:06.5]} 69. Rd8+ {[%clk
0:00:07.4]} 69... Ke7 {[%clk 0:00:06]} 70. Rd4 {[%clk 0:00:07.1]} 70... Ke6
{[%clk 0:00:05.9]} 71. b5 {[%clk 0:00:07]} 71... Ke5 {[%clk 0:00:06.6]} 72. Rd8
{[%clk 0:00:07.2]} 72... Rg1 {[%clk 0:00:06.2]} 73. Kb4 {[%clk 0:00:05.8]} 73...
Rb1+ {[%clk 0:00:06.5]} 74. Kc5 {[%clk 0:00:06.2]} 74... e3 {[%clk 0:00:07.2]}
75. Re8+ {[%clk 0:00:06.2]} 75... Kf4 {[%clk 0:00:07.8]} 76. b6 {[%clk
0:00:06.7]} 76... Kf3 {[%clk 0:00:07.6]} 77. Kc6 {[%clk 0:00:07.2]} 77... e2
{[%clk 0:00:07.9]} 78. Rxe2 {[%clk 0:00:06.7]} 78... Kxe2 {[%clk 0:00:07.8]} 79.
b7 {[%clk 0:00:07.4]} 79... Rxb7 {[%clk 0:00:08.2]} 80. Kxb7 {[%clk 0:00:07.9]}
1/2-1/2